Cogmind - Beta 11.1 @@@ ROGUE MODE // 2022.05.04 @ 18:13:01 Player: Azken Zutik Result: Self-destructed Performance ------------- Evolutions (4) 2000 Regions Visited (5) 1000 Robots Destroyed (0) 0 Value Destroyed (0) 0 Prototype IDs (0) 0 Alien Tech Used (0) 0 Bonus (1325) 1325 TOTAL SCORE: 4325 Bonus ------- Pacifist 1325 Cogmind --------- Core Integrity 255/850 Matter 300/300 Energy 100/100 System Corruption 1% Temperature Cool (0) Movement Core (50) Location -6/Factory Parts ------- > --- POWER (3) -------- (None) > --- PROPULSION (7) --- (None) > --- UTILITY (3) ------ (None) > --- WEAPON (2) ------- (None) > --- INVENTORY (5) ---- Light Treads Light Treads Compact Wheel Compact Wheel Assault Rifle Peak State ------------ > --- POWER ------------ (None) > --- PROPULSION ------- (None) > --- UTILITY ---------- (None) > --- WEAPON ----------- Improved Light Cannon > --- INVENTORY -------- Light Treads Light Treads Compact Wheel Compact Wheel Assault Rifle [Rating: 2] Favorites ----------- Power None Propulsion None Utility None Weapon Mining Laser Ballistic Cannon Improved Light Cannon Special Weapon Mining Laser Build | -11 -10 -9 -8 -7 -6 ------- Run | Scr Mat Mat Mat Fac Fac Slots Evolved 8 | . . 2 2 2 2 Power 2 | . . . 1 . 1 Propulsion 5 | . . 2 . 2 1 Utility 1 | . . . 1 . . Weapon . | . . . . . . Parts Attached 2 | . 1 1 . . . Power . | . . . . . . Engine . | . . . . . . Core . | . . . . . . Reactor . | . . . . . . Propulsion . | . . . . . . Treads . | . . . . . . Leg . | . . . . . . Wheel . | . . . . . . Hover . | . . . . . . Flight . | . . . . . . Utility . | . . . . . . Device . | . . . . . . Storage . | . . . . . . Processor . | . . . . . . Hackware . | . . . . . . Protection . | . . . . . . Artifact . | . . . . . . Weapon 2 | . 1 1 . . . Energy Gun . | . . . . . . Energy Cannon . | . . . . . . Ballistic Gun . | . . . . . . Ballistic Cannon 1 | . . 1 . . . Launcher . | . . . . . . Special Weapon 1 | . 1 . . . . Impact Weapon . | . . . . . . Slashing Weapon . | . . . . . . Piercing Weapon . | . . . . . . Special Melee Weapon . | . . . . . . Unidentified Prototypes . | . . . . . . Parts Lost 1 | . . 1 . . . Power . | . . . . . . Propulsion . | . . . . . . Utility . | . . . . . . Weapon 1 | . . 1 . . . Highest Loss Streak 1 | . . 1 . . . To Critical Strikes . | . . . . . . Average Slot Usage (%) 1 | . . 5 . . . Naked Turns 327 | . 31 34 30 132 100 Heaviest Build 4 | . 1 4 . . . Greatest Support 3 | 3 3 3 3 3 3 Greatest Overweight (x) 1 | . . 1 . . . Average Overweight (x) . | . . . . . . Largest Inventory Capacity 5 | . 5 5 5 5 5 Average Capacity 5 | . 5 5 5 5 5 Most Carried 5 | . 5 5 5 5 5 Average Carried 5 | . 5 5 5 5 5 Final Capacity 5 | 5 5 5 5 5 5 Final Carried 5 | 5 5 5 5 5 5 Class Distribution -------------------- 100% | Mutant Dominant Class ---------------- Mutant | -10/Materials Mutant | -9/Materials Mutant | -8/Materials Mutant | -7/Factory Mutant | -6/Factory Resources | -11 -10 -9 -8 -7 -6 ----------- Run | Scr Mat Mat Mat Fac Fac Matter Collected 200 | 200 . . . . . Remotely . | . . . . . . Salvage Created . | . . . . . . Parts . | . . . . . . Haulers Intercepted . | . . . . . . Recyclers Shooed . | . . . . . . Parts Field Recycled . | . . . . . . Retrieved Matter . | . . . . . . Parts Self-Destructed . | . . . . . . Prevented . | . . . . . . Kills | -11 -10 -9 -8 -7 -6 ------- Run | Scr Mat Mat Mat Fac Fac Combat Hostiles Destroyed . | . . . . . . Classes Destroyed . | . . . . . . Best Kill Streak . | . . . . . . Combat Bots Only . | . . . . . . Max Kills in Single Turn . | . . . . . . Gunslinging . | . . . . . . Exploded . | . . . . . . Melee . | . . . . . . Uniques/NPCs Destroyed . | . . . . . . Combat | -11 -10 -9 -8 -7 -6 -------- Run | Scr Mat Mat Mat Fac Fac Damage Taken 1454 | . 87 473 229 70 595 Core 1307 | . 87 326 229 70 595 Absorbed by Shields . | . . . . . . Core Remaining (%) 66 | 100 65 18 58 90 . Volleys Fired 2 | . . 2 . . . Largest 1 | . . 1 . . . Hottest 39 | . . 39 . . . Shots Fired 2 | . . 2 . . . Gun . | . . . . . . Cannon 2 | . . 2 . . . Launcher . | . . . . . . Special . | . . . . . . Kinetic 2 | . . 2 . . . Thermal . | . . . . . . Explosive . | . . . . . . Electromagnetic . | . . . . . . Robot Hit Streak . | . . . . . . Robot Miss Streak . | . . . . . . Penetration Max . | . . . . . . Secondary Targets . | . . . . . . Shots Hit Robots . | . . . . . . Core Hits 1 | . . . . . 1 Critical Kills . | . . . . . . Critical Parts Destroyed . | . . . . . . Critical Strikes . | . . . . . . Melee Attacks . | . . . . . . Impact . | . . . . . . Slashing . | . . . . . . Piercing . | . . . . . . Sneak Attacks . | . . . . . . Combat Hostiles . | . . . . . . Follow-up Attacks . | . . . . . . Damage Inflicted 88 | . . 19 . 29 40 Guns . | . . . . . . Cannons . | . . . . . . Explosions . | . . . . . . Melee . | . . . . . . Ramming 88 | . . 19 . 29 40 Kinetic . | . . . . . . Thermal . | . . . . . . Explosive . | . . . . . . Electromagnetic . | . . . . . . Impact . | . . . . . . Slashing . | . . . . . . Piercing . | . . . . . . Highest Corruption 2 | . . 2 . 1 1 Average Corruption 1 | . . 2 . 1 1 Corruption Purged . | . . . . . . Corruption Blocked . | . . . . . . Overload Shots . | . . . . . . Overflow Damage . | . . . . . . Projectiles . | . . . . . . Explosions . | . . . . . . Melee . | . . . . . . Knockbacks 1 | . . 1 . . . Impact 1 | . . 1 . . . Kinetic . | . . . . . . Secondary . | . . . . . . Self-Inflicted Damage 41 | . . 8 . 14 19 Shots . | . . . . . . Rammed 14 | . . 3 . 4 7 Targets Rammed 14 | . . 3 . 4 7 Kicked . | . . . . . . Crushed . | . . . . . . Highest Temperature . | . . . . . . Average Temperature . | . . . . . . Received Heat Transfer 339 | . 48 99 135 . 57 Siege Activations . | . . . . . . Robots Corrupted . | . . . . . . Combat Hostiles . | . . . . . . Parts Fried . | . . . . . . Impact Corruptions . | . . . . . . Robots Melted . | . . . . . . Combat Hostiles . | . . . . . . Parts Melted . | . . . . . . Heat Transferred . | . . . . . . Parts Sabotaged . | . . . . . . Parts Stolen . | . . . . . . Parts Stripped . | . . . . . . Power Chain Reactions . | . . . . . . Missiles Intercepted . | . . . . . . Alert | -11 -10 -9 -8 -7 -6 ------- Run | Scr Mat Mat Mat Fac Fac Peak Influence 160 | . 32 160 96 50 99 Initial 67 | . . 13 67 43 24 Average 49 | . 17 68 84 46 38 Maximum Alert Level . | . . . . . . Low Security (%) 100 | . 100 100 100 100 100 Level 1 . | . . . . . . Level 2 . | . . . . . . Level 3 . | . . . . . . Level 4 . | . . . . . . Level 5 . | . . . . . . High Security . | . . . . . . Max Security . | . . . . . . Squads Dispatched 9 | . 1 2 2 3 1 Investigation 5 | . . 1 1 2 1 Extermination . | . . . . . . Reinforcement 4 | . 1 1 1 1 . Assault . | . . . . . . Garrison . | . . . . . . Intercept . | . . . . . . Searches Triggered . | . . . . . . Construction Impeded 1 | . . . . 1 . Haulers Reinforced . | . . . . . . Active Scanning Responses . | . . . . . . Cargo Convoy Interrupts . | . . . . . . Stealth | -11 -10 -9 -8 -7 -6 --------- Run | Scr Mat Mat Mat Fac Fac Distress Signals 2 | . . 1 . . 1 Communications Jammed . | . . . . . . Distress Signals . | . . . . . . Times Spotted 39 | . 4 17 9 . 9 Peak Tracking Total 11 | . 3 11 8 . 6 Tactical Retreats 5 | . . 3 . . 2 Traps | -11 -10 -9 -8 -7 -6 ------- Run | Scr Mat Mat Mat Fac Fac Traps Triggered 2 | . . . 1 1 . Indirectly . | . . . . . . Trap Hack Attempts . | . . . . . . Triggered . | . . . . . . Disarmed . | . . . . . . Reprogrammed . | . . . . . . Reused . | . . . . . . Traps Extracted . | . . . . . . Installed . | . . . . . . Triggered . | . . . . . . Machines | -11 -10 -9 -8 -7 -6 ---------- Run | Scr Mat Mat Mat Fac Fac Machines Disabled . | . . . . . . Max in Single Turn . | . . . . . . Machines Sabotaged . | . . . . . . Garrisons Compromised . | . . . . . . Overloaded Fab Kills . | . . . . . . Hacking | -11 -10 -9 -8 -7 -6 --------- Run | Scr Mat Mat Mat Fac Fac Machines Accessed 8 | . 2 2 1 2 1 Terminals 7 | . 2 2 1 1 1 Fabricators . | . . . . . . Repair Stations . | . . . . . . Recycling Units . | . . . . . . Scanalyzers . | . . . . . . Garrison Access 1 | . . . . 1 . Total Hacks 28 | . 8 8 5 5 2 Successful 9 | . 3 3 2 1 . Failed 19 | . 5 5 3 4 2 Catastrophic 3 | . 1 . 1 . 1 Database Lockouts . | . . . . . . Manual 7 | . 2 1 2 2 . Terminals 26 | . 8 8 5 3 2 Fabricators . | . . . . . . Repair Stations . | . . . . . . Recycling Units . | . . . . . . Scanalyzers . | . . . . . . Garrison Access 2 | . . . . 2 . Terminal Hacks 8 | . 2 3 2 1 . Level Access Points 3 | . 1 1 1 . . Branch Access Points 1 | . . . . 1 . Zone Layout 4 | . 1 2 1 . . Fabricator Hacks . | . . . . . . Repair Station Hacks . | . . . . . . Recycling Unit Hacks . | . . . . . . Scanalyzer . | . . . . . . Garrison Access Hacks . | . . . . . . Unauthorized Hacks 1 | . 1 . . . . Terminals 1 | . 1 . . . . Botnet 1 | . 1 . . . . Fabricators . | . . . . . . Repair Stations . | . . . . . . Recycling Units . | . . . . . . Scanalyzers . | . . . . . . Garrison Access . | . . . . . . Data Cores Recovered . | . . . . . . Used . | . . . . . . Hacking Detections 8 | . 2 2 1 2 1 Full Trace Events 5 | . . 1 1 2 1 Feedback Events . | . . . . . . Feedback Blocked . | . . . . . . Robot Schematics Acquired . | . . . . . . Robots Built . | . . . . . . Authchips . | . . . . . . Time . | . . . . . . Total Robot Build Rating . | . . . . . . Part Schematics Acquired . | . . . . . . Parts Built . | . . . . . . Authchips . | . . . . . . Time . | . . . . . . Total Part Build Rating . | . . . . . . Parts Repaired . | . . . . . . Time . | . . . . . . Parts Recycled . | . . . . . . Recycled Matter . | . . . . . . Retrieved Matter . | . . . . . . Retrieved Components . | . . . . . . Parts Scanalyzed . | . . . . . . Part Schematics Acquired . | . . . . . . Parts Damaged . | . . . . . . Bothacking | -11 -10 -9 -8 -7 -6 ------------ Run | Scr Mat Mat Mat Fac Fac Used RIF Installer . | . . . . . . Robots Hacked . | . . . . . . Non-combat . | . . . . . . Combat . | . . . . . . Robot Hacks Applied . | . . . . . . Relay Couplers Released . | . . . . . . Fabnet Peak Effective % . | . . . . . . Robots Rewired . | . . . . . . Allies Hacked . | . . . . . . Hacks Repelled . | . . . . . . Allies | -11 -10 -9 -8 -7 -6 -------- Run | Scr Mat Mat Mat Fac Fac Total Allies . | . . . . . . Largest Group . | . . . . . . Highest-Rated Group . | . . . . . . Highest-Rated Ally . | . . . . . . Total Orders . | . . . . . . Ally Attacks . | . . . . . . Total Damage . | . . . . . . Kills . | . . . . . . Allies Corrupted . | . . . . . . Allies Melted . | . . . . . . Intel | -11 -10 -9 -8 -7 -6 ------- Run | Scr Mat Mat Mat Fac Fac Robot Analysis Total . | . . . . . . Derelict Logs Recovered . | . . . . . . Drone Launches . | . . . . . . Drone Recoveries . | . . . . . . Exploration | -11 -10 -9 -8 -7 -6 ------------- Run | Scr Mat Mat Mat Fac Fac Turns Passed 375 | . 35 78 30 132 100 Spaces Moved 698 | 1 66 131 60 256 184 Core 698 | 1 66 131 60 256 184 Treads . | . . . . . . Legs . | . . . . . . Wheels . | . . . . . . Hover . | . . . . . . Flight . | . . . . . . Fastest Speed 50 | 50 50 50 50 50 50 Average Speed 50 | 50 50 52 50 50 50 Slowest Speed 100 | 50 50 100 50 50 50 Overloaded Moves . | . . . . . . Propulsion Burnouts . | . . . . . . Robots Hopped . | . . . . . . Cave-ins Triggered . | . . . . . . Exploration Rate (%) 11 | 2 16 22 12 8 7 Regions Visited 5 Branch Regions . Pre-discovered Areas . | . . . . . . Known Exits Taken 3 | . 1 1 1 . . Unknown Exits Taken 2 | 1 . . . 1 . Scrap Searched . | . . . . . . Spaces Dug 1 | . . 1 . . . Terrain Destroyed 1 | . . 1 . . . Melee . | . . . . . . Projectile 1 | . . 1 . . . AOE . | . . . . . . Terrain Rammed . | . . . . . . Walls Destroyed . | . . . . . . Machines Disabled . | . . . . . . Actions | -11 -10 -9 -8 -7 -6 --------- Run | Scr Mat Mat Mat Fac Fac Total 712 | . 66 137 59 259 191 Wait . | . . . . . . Move 693 | . 65 130 59 255 184 Hop . | . . . . . . Pick Up . | . . . . . . Fast Attach 2 | . 1 1 . . . Attach . | . . . . . . Detach . | . . . . . . Swap . | . . . . . . Drop 1 | . . 1 . . . Fire 2 | . . 2 . . . Melee . | . . . . . . Ram 14 | . . 3 . 4 7 Kick . | . . . . . . Crush . | . . . . . . Escape Stasis . | . . . . . . Rewire . | . . . . . . Trap . | . . . . . . Miscellaneous . | . . . . . . Route ------- -11/Scrapyard -10/Materials (discovered 3 exits: *Mat x3) -9/Materials (discovered 3 exits: *Mat x3) -8/Materials (discovered 3 exits: *Fac x3) -7/Factory (discovered 3 exits: *Fac / Low x2) -6/Factory History --------- Turn | Location | Event 1 | -11/Scrapyard | Released all parts (6) 1 | -11/Scrapyard | Discovered new exit (range 0) 1 | -11/Scrapyard | Entered Materials 17 | -10/Materials | Identified exit to Materials 36 | -10/Materials | Entered another Materials area 36 | -9/Materials | Evolved 2 slots: Propulsion x2 78 | -9/Materials | Identified exit to Materials 107 | -9/Materials | Core integrity fell below 50% 114 | -9/Materials | Core integrity fell below 20% 114 | -9/Materials | Entered another Materials area 114 | -8/Materials | Evolved 2 slots: Power x1, Utility x1 128 | -8/Materials | Identified exit to Factory 144 | -8/Materials | Entered Factory 144 | -7/Factory | Evolved 2 slots: Propulsion x2 205 | -7/Factory | Identified exit to Lower Caves 269 | -7/Factory | Discovered new exit (range 15) 276 | -7/Factory | Entered another Factory area 276 | -6/Factory | Evolved 2 slots: Power x1, Propulsion x1 304 | -6/Factory | Build established: Mutant 361 | -6/Factory | Core integrity fell below 50% 376 | -6/Factory | Self-destructed Last Messages --------------- 00312_ ALERT: All DSF locations entering lockdown mode. 00316_ K-01 Serf cleans the Fusion Modulator. 00328_ K-01 Serf collects debris. 00336_ Slammed into K-01 Serf. 00337_ Slammed into A-15 Conveyor. 00337_ K-01 Serf sends out distress signal. 00338_ Slammed into A-15 Conveyor. 00341_ Destabilizing: System corrupted (+1). 00342_ Slammed into A-15 Conveyor. 00346_ Penetrated by Slug. 00346_ Power Conduit explodes. 00346_ A-15 Conveyor destroyed. 00346_ Power Conduit explodes. 00346_ Terminal disabled. 00346_ U-05 Engineer lays Concrete. 00347_ U-05 Engineer builds a Wall. 00349_ U-05 Engineer lays Concrete. 00349_ U-05 Engineer destroyed. 00350_ U-05 Engineer lays Concrete. 00368_ K-01 Serf collects debris. Map ----- +----------------------------------------------------+ | # #??????????# #????????? | | # #??????##### #????????? | | # #??????+ +????????? | | # #??????# ### #????????? | | # #???#### #?# #????????? | | #???# #?### ###????????? | | # #???# #???# #??????????? | | # #???# #???# #??????????? | | " #???# #???# #??????????? | | " #???# #???# #??????????? | | " ##### #####/##?????????? | | " # #?????????? | | " # #?????????? | | # ! # #?????????? | | =%!%! H / #?????????? | | "! =* ######" # #?????????? | | " "#?????# s # #?????????? | | #?????# s########?????????? | | #?????# ######## #????????????????? | | #?????#+#??????#s####?????????????? | | #??????????????# #?????????????? | | #??????????????# #?????????????? | | #??????????????# #?????????????? | | #??????????????# #?????????????? | | #????????????###/##+####??????????? | | #????????????# @ #??????????? | | ## ###????????????# ] ! #??????????? | | ?# #??????????????# #??????????? | | ?# #??????????????# #??????????? | | ?? #??????????????###########??????????? | | ?? ?????????????????????????????????????? | | ???????????????????????????????????????????? | | ???????????????????????????????????????????? | | ???????????????????????????????????????????? | | ???????????????????????????????????????????? | | ???????????????????????????????????????????? | | ???????????????????????????????????????????? | | ???????????????????????????????????????????? | | ???????????????????????????????????????????? | | ???????????????????????????????????????????? | | ???????????????????????????????????????????? | | ???????????????????????????????????????????? | | ???????????????????????????????????????????? | | ???????????????????????????????????????????? | | ???????????????????????????????????????????? | | ???????????????????????????????????????????? | | ???????????????????????????????????????????? | | ???????????????????????????????????????????? | | ???????????????????????????????????????????? | | ???????????????????????????????????????????? | +----------------------------------------------------+ Best States ------------- Heat Dissipation 37 Energy Generation 5 Energy Capacity 100 Matter Stores 300 Matter Capacity 300 Sight Range 16 Terrain Scan Density 10 Evasion (%) 50 Item Schematics ----------------- None Robot Schematics ------------------ None Fabricated ------------ Nothing Alien Tech Used ----------------- None Achievements -------------- None Challenges ------------ None Game ------ Seed SniperEfficiencyMallet Manual? 0 Play Time 00:08:30 Cumulative 344.8 hours Start 2022.05.04 @ 18:05:53 End 2022.05.04 @ 18:13:01 Sessions 1 Manual Loads 0 Difficulty Rogue Special Mode None Game No. 130 Rogue 130 Adventurer 0 Explorer 0 Win Type - Total 7 Types 3/1/0/1/2/0/0/0/0 Lore% 66 Gallery% 79 Achievement% 69 Wizard Run 0 Options --------- ASCII 0 Keyboard 0 Movement Mouse Keybinds 0 Fullscreen 0 Font 28/SmallcapsGlow Map View 72x54 Tactical HUD 1 Map Filters NONE Filters NONE Steam 1 RUN: f0f3b4e3-100e-494e-a747-0c83a7e9e1dc